lending/lending_fUSD_20250917
["ID","MTS","AMOUNT","RATE_DAILY","PERIOD"]
[385873437,1758078647640,-348.032368,0.00032228,7]
[385873438,1758078647651,-169.980899,0.00032228,7]
[385873439,1758078647661,-1262.8580435,0.00032249,2]
[385873440,1758078647671,-421.5,0.00032254,30]
[385873441,1758078647680,-174.61919141,0.00032283,2]
[385873442,1758078647689,-9905.5980765,0.00032283,2]
[385873443,1758078647699,-151.0,0.00032311,7]
[385873444,1758078647709,-151.0,0.00032311,7]
[385873445,1758078647718,-151.0,0.00032311,7]
[385873446,1758078647727,-156.705204,0.00032311,7]
[385873447,1758078647737,-154.506146,0.00032311,7]
[385873448,1758078647747,-151.0,0.00032311,7]
[385873449,1758078647756,-151.0,0.00032311,7]
[385873450,1758078647765,-151.0,0.00032311,7]
[385873451,1758078647775,-1743.57,0.00032311,2]
[385873452,1758078647784,-880.57465412,0.0003232,15]
[385873453,1758078647794,-181.08010149,0.00032338,2]
[385873454,1758078647803,-10272.10520533,0.00032338,2]
[385873455,1758078647814,-222.04085484,0.00032358,10]
[385873456,1758078647824,-300.0,0.00032358,10]
[385873457,1758078647833,-2049.675,0.00032359,2]
[385873458,1758078647843,-3406.547,0.00032359,2]
[385873459,1758078647853,-756.0,0.00032359,2]
[385873460,1758078647863,-1266.39,0.00032359,2]
[385873461,1758078647872,-571.355,0.00032359,2]
[385873462,1758078647882,-1588.017,0.00032359,2]
[385873463,1758078647892,-1303.0,0.00032359,2]
[385873464,1758078647902,-603.418,0.00032359,2]
[385873465,1758078647912,-556.67,0.00032359,2]
[385873466,1758078647923,-187.78006525,0.00032393,2]
[385873467,1758078647933,-10652.17309792,0.00032393,2]
[385873468,1758078648155,-194.72792766,0.00032448,2]
[385873469,1758078648165,-11046.30350255,0.00032448,2]
[385873470,1758078648175,-500.0,0.00032464,5]
[385873471,1758078648184,-424.4,0.00032489,2]
[385873472,1758078648193,-201.93286099,0.00032503,2]
[385873473,1758078648203,-11455.01673214,0.00032503,2]
[385873474,1758078648212,-209.40437684,0.00032558,2]
[385873475,1758078648222,-11878.85235123,0.00032558,2]
[385873476,1758078648231,-800.0,0.00032602,29]
[385873477,1758078648240,-639.77374121,0.00032603,2]
[385873478,1758078648250,-151.0,0.00032611,2]
[385873479,1758078648259,-151.0,0.00032611,2]
[385873480,1758078648268,-151.0,0.00032611,2]
[385873481,1758078648278,-151.0,0.00032611,2]
[385873482,1758078648287,-151.0,0.00032611,2]
[385873483,1758078648296,-217.15233878,0.00032613,2]
[385873484,1758078648305,-12318.36988823,0.00032613,2]
[385873485,1758078648314,-424.4,0.0003262,2]
[385873486,1758078648324,-288.91246079,0.00032668,2]
[385873487,1758078648333,-12774.14957409,0.00032668,2]
[385873488,1758078648342,-300.0,0.00032708,10]
[385873489,1758078648351,-200.0,0.00032709,2]
[385873490,1758078648360,-200.0,0.00032709,2]
[385873491,1758078648370,-200.0,0.00032709,2]
[385873492,1758078648378,-200.0,0.00032709,2]
[385873493,1758078648387,-200.0,0.00032709,2]
[385873494,1758078648397,-200.0,0.00032709,2]
[385873495,1758078648406,-200.0,0.00032709,2]
[385873496,1758078648415,-200.0,0.00032709,2]
[385873497,1758078648424,-200.0,0.00032709,2]
[385873498,1758078648433,-200.0,0.00032709,2]
[385873499,1758078648442,-200.0,0.00032709,2]
[385873500,1758078648452,-200.0,0.00032709,2]
[385873501,1758078648462,-200.0,0.00032709,2]
[385873502,1758078648471,-200.0,0.00032709,2]
[385873503,1758078648480,-200.0,0.00032709,2]
[385873504,1758078648493,-200.0,0.00032709,2]
[385873505,1758078648503,-200.0,0.00032709,2]
[385873506,1758078648512,-200.0,0.00032709,2]
[385873507,1758078648521,-200.0,0.00032709,2]
[385873508,1758078648530,-200.0,0.00032709,2]
[385873509,1758078648539,-200.0,0.00032709,2]
[385873510,1758078648549,-200.0,0.00032709,2]
[385873511,1758078648558,-200.0,0.00032709,2]
[385873512,1758078648567,-200.0,0.00032709,2]
[385873513,1758078648577,-200.0,0.00032709,2]
[385873514,1758078648586,-200.0,0.00032709,2]
[385873515,1758078648595,-202.0,0.00032709,2]
[385873516,1758078648604,-800.0,0.00032709,13]
[385873517,1758078648613,-800.0,0.00032709,13]
[385873518,1758078648624,-800.0,0.00032709,13]
[385873519,1758078648634,-800.0,0.00032709,13]
[385873520,1758078648643,-800.0,0.00032709,13]
[385873521,1758078648653,-800.0,0.00032709,13]
[385873522,1758078648662,-800.0,0.00032709,13]
[385873523,1758078648671,-800.0,0.00032709,13]
[385873524,1758078648680,-800.0,0.00032709,13]
[385873525,1758078648689,-800.0,0.00032709,13]
[385873526,1758078648699,-800.0,0.00032709,13]
[385873527,1758078648708,-800.0,0.00032709,13]
[385873528,1758078648717,-800.0,0.00032709,13]
[385873529,1758078648726,-800.0,0.00032709,13]
[385873530,1758078648736,-800.0,0.00032709,13]
[385873531,1758078648745,-800.0,0.00032709,13]
[385873532,1758078648754,-800.0,0.00032709,13]
[385873533,1758078648764,-800.0,0.00032709,13]
[385873534,1758078648773,-800.0,0.00032709,13]
[385873535,1758078648783,-800.0,0.00032709,13]
[385873536,1758078648792,-800.0,0.00032709,13]
[385873537,1758078648801,-800.0,0.00032709,13]
[385873538,1758078648810,-800.0,0.00032709,13]
[385873539,1758078648825,-232.0,0.00032709,13]
[385873540,1758078648837,-13246.79310833,0.00032723,2]
[385873541,1758078648847,-424.4,0.00032751,2]
[385873542,1758078648859,-161.90209112,0.00032754,4]
[385873543,1758078648870,-300.0,0.00032764,10]
[385873544,1758078648880,-13736.92445334,0.00032778,2]
[385873545,1758078648890,-150.0,0.00032787,5]
[385873546,1758078648900,-726.75942103,0.00032826,5]
[385873547,1758078648911,-150.0,0.00032867,2]
[385873548,1758078648920,-262.49574146,0.0003287,2]
[385873549,1758078648931,-334.55339598,0.00032872,2]
[385873550,1758078648940,-406.6110505,0.00032875,2]
[385873551,1758078648950,-478.66870501,0.00032877,2]
[385873552,1758078648960,-550.72635953,0.0003288,2]
[385873553,1758078648970,-622.78401405,0.00032882,2]
[385873554,1758078648980,-694.84166857,0.00032885,2]
[385873555,1758078648990,-766.89932309,0.00032887,2]
[385873556,1758078649000,-838.9569776,0.0003289,2]
[385873557,1758078649011,-4227.22,0.000329,14]
[385873558,1758078649021,-2100.0,0.000329,12]
[385873559,1758078649031,-234.43,0.00032923,2]
[385873560,1758078649040,-3234.688,0.00032935,2]
[385873561,1758078649050,-150.00000001,0.00032959,7]
[385873562,1758078649060,-156.64771004,0.00032959,7]
[385873563,1758078649070,-150.0,0.00032967,2]
[385873564,1758078649079,-267.07946462,0.0003297,2]
[385873565,1758078649089,-340.39539609,0.00032972,2]
[385873566,1758078649099,-413.71132755,0.00032975,2]
[385873567,1758078649108,-487.02725902,0.00032977,2]
[385873568,1758078649118,-560.34319048,0.0003298,2]
[385873569,1758078649128,-1000.0,0.0003298,2]
[385873570,1758078649137,-633.65912195,0.00032982,2]
[385873571,1758078649146,-706.97505342,0.00032985,2]
[385873572,1758078649156,-780.29098488,0.00032987,2]
[385873573,1758078649165,-256.58,0.00032989,30]
[385873574,1758078649175,-853.60691635,0.0003299,2]
[385873575,1758078649184,-1041.02115386,0.00032999,30]
[385873576,1758078649194,-300.0,0.00032999,10]
[385873577,1758078649203,-166856.57345,0.00033,2]
[385873578,1758078649214,-1000.0,0.00033,6]
[385873579,1758078649224,-1000.0,0.00033,6]
[385873580,1758078649234,-1000.0,0.00033,6]
[385873581,1758078649244,-1000.0,0.00033,6]
[385873582,1758078649253,-1000.0,0.00033,6]
[385873583,1758078649263,-1000.0,0.00033,6]
[385873584,1758078649274,-1000.0,0.00033,6]
[385873585,1758078649283,-1000.0,0.00033,6]
[385873586,1758078649293,-1000.0,0.00033,6]
[385873587,1758078649303,-1000.0,0.00033,6]
[385873588,1758078649313,-1000.0,0.00033,6]
[385873589,1758078649322,-1000.0,0.00033,6]
[385873590,1758078649331,-1000.0,0.00033,6]
[385873591,1758078649341,-1000.0,0.00033,6]
[385873592,1758078649350,-1000.0,0.00033,6]
[385873593,1758078649359,-1000.0,0.00033,6]
[385873594,1758078649368,-1000.0,0.00033,6]
[385873595,1758078649377,-1000.0,0.00033,6]
[385873596,1758078649386,-1000.0,0.00033,6]
[385873597,1758078649395,-1000.0,0.00033,6]
[385873598,1758078649404,-1000.0,0.00033,6]
[385873599,1758078649413,-1000.0,0.00033,6]
[385873600,1758078649422,-1000.0,0.00033,6]
[385873601,1758078649431,-1000.0,0.00033,6]
[385873602,1758078649440,-1000.0,0.00033,6]
[385873603,1758078649449,-1000.0,0.00033,6]
[385873604,1758078649459,-1000.0,0.00033,6]
[385873605,1758078649471,-1000.0,0.00033,6]
[385873606,1758078649480,-1000.0,0.00033,6]
[385873607,1758078649494,-1000.0,0.00033,6]
[385873608,1758078649503,-1000.0,0.00033,6]
[385873609,1758078649512,-1000.0,0.00033,6]
[385873610,1758078649521,-251.33829478,0.00033,6]
[385873611,1758078649531,-1180.46664601,0.00033,2]
[385873612,1758078649541,-154.459359,0.00033,7]
[385873613,1758078649550,-151.0,0.00033,7]
[385873614,1758078649560,-152.202334,0.00033,7]
[385873615,1758078649570,-154.659613,0.00033,7]
[385873616,1758078649579,-154.774715,0.00033,7]
[385873617,1758078649588,-151.0,0.00033,7]
[385873618,1758078649597,-155.244656,0.00033,7]
[385873619,1758078649606,-151.00000047,0.00033,7]
[385873620,1758078649615,-198.753053,0.00033,7]
[385873621,1758078649626,-151.0,0.00033,7]
[385873622,1758078649637,-151.0,0.00033,7]
[385873623,1758078649648,-151.0,0.00033,7]
[385873624,1758078649658,-242.580837,0.00033,7]
[385873625,1758078649667,-151.0,0.00033,7]
[385873626,1758078649676,-151.0,0.00033,7]
[385873627,1758078649685,-151.0,0.00033,7]
[385873628,1758078649695,-151.0,0.00033,7]
[385873629,1758078649704,-154.381254,0.00033,7]
[385873630,1758078649714,-151.0,0.00033,7]
[385873631,1758078649724,-151.0,0.00033,7]
[385873632,1758078649733,-151.0,0.00033,7]
[385873633,1758078649742,-237.375791,0.00033,7]
[385873634,1758078649751,-151.0,0.00033,7]
[385873635,1758078649760,-151.0,0.00033,7]
[385873636,1758078649771,-160.246074,0.00033,7]
[385873637,1758078649780,-218.649692,0.00033,7]
[385873638,1758078649789,-218.649692,0.00033,7]
[385873639,1758078649800,-218.649692,0.00033,7]
[385873640,1758078649809,-151.0,0.00033,7]
[385873641,1758078649819,-218.649692,0.00033,7]
[385873642,1758078649828,-151.0,0.00033,7]
[385873643,1758078649839,-243.016479,0.00033,7]
[385873644,1758078649849,-243.016479,0.00033,7]
[385873645,1758078649859,-243.016479,0.00033,7]
[385873646,1758078649868,-243.016479,0.00033,7]
[385873647,1758078649877,-414.405973,0.00033,7]
[385873648,1758078649886,-414.405973,0.00033,7]
[385873649,1758078649895,-414.405973,0.00033,7]
[385873650,1758078649904,-37129.46,0.00033,14]
[385873651,1758078649914,-414.405973,0.00033,7]
[385873652,1758078649923,-151.0,0.00033,7]
[385873653,1758078649932,-151.0,0.00033,7]
[385873654,1758078649941,-234.303678,0.00033,7]
[385873655,1758078649950,-422.848426,0.00033,7]
[385873656,1758078649960,-422.848426,0.00033,7]
[385873657,1758078649969,-422.848426,0.00033,7]
[385873658,1758078649978,-283.567025,0.00033,7]
[385873659,1758078649987,-151.0,0.00033,7]
[385873660,1758078649998,-422.848426,0.00033,7]
[385873661,1758078650007,-151.0,0.00033,7]
[385873662,1758078650017,-151.0,0.00033,7]
[385873663,1758078650026,-159.748675,0.00033,7]
[385873664,1758078650035,-151.0,0.00033,7]
[385873665,1758078650044,-153.871247,0.00033,7]
[385873666,1758078650053,-151.0,0.00033,7]
[385873667,1758078650063,-348.032368,0.00033,7]
[385873668,1758078650072,-348.032368,0.00033,7]
[385873669,1758078650081,-348.032368,0.00033,7]
[385873670,1758078650092,-348.032368,0.00033,7]
[385873671,1758078650101,-151.0,0.00033,7]
[385873672,1758078650110,-254.884899,0.00033,7]
[385873673,1758078650119,-254.884899,0.00033,7]
[385873674,1758078650129,-254.884899,0.00033,7]
[385873675,1758078650138,-254.884899,0.00033,7]
[385873676,1758078650147,-151.0,0.00033,7]
[385873677,1758078650156,-151.0,0.00033,7]
[385873678,1758078650165,-151.0,0.00033,7]
[385873679,1758078650175,-254.514932,0.00033,7]
[385873680,1758078650184,-811.592004,0.00033,7]
[385873681,1758078650193,-151.0,0.00033,7]
[385873682,1758078650203,-254.514932,0.00033,7]
[385873683,1758078650212,-811.592004,0.00033,7]
[385873684,1758078650221,-811.592004,0.00033,7]
[385873685,1758078650230,-811.592004,0.00033,7]
[385873686,1758078650239,-254.514932,0.00033,7]
[385873687,1758078650248,-254.514932,0.00033,7]
[385873688,1758078650257,-151.0,0.00033,7]
[385873689,1758078650267,-151.0,0.00033,7]
[385873690,1758078650276,-151.0,0.00033,7]
[385873691,1758078650285,-151.0,0.00033,7]
[385873692,1758078650294,-151.0,0.00033,7]
[385873693,1758078650303,-151.0,0.00033,7]
[385873694,1758078650313,-4000.0,0.00033,4]
[385873695,1758078650323,-151.0,0.00033,7]
[385873696,1758078650332,-151.0,0.00033,7]
[385873697,1758078650340,-151.0,0.00033,7]
[385873698,1758078650350,-153.647036,0.00033,7]
[385873699,1758078650361,-151.0,0.00033,7]
[385873700,1758078650372,-151.0,0.00033,7]
[385873701,1758078650383,-500.0,0.00033012,5]
[385873702,1758078650393,-1000.0,0.00033029,2]
[385873703,1758078650405,-150.0,0.0003304,2]
[385873704,1758078650415,-19378.88262933,0.00033086,2]
[385873705,1758078650426,-156.33907,0.000331,7]
[385873706,1758078650435,-203.730073,0.000331,7]
[385873707,1758078650444,-151.0,0.000331,7]
[385873708,1758078650453,-151.0,0.000331,7]
[385873709,1758078650462,-151.0,0.000331,7]
[385873710,1758078650471,-445.20508156,0.0003315,29]
[385873711,1758078650480,-151.0,0.00033159,2]
[385873712,1758078650494,-151.0,0.00033159,2]
[385873713,1758078650503,-228.26715187,0.00033159,2]
[385873714,1758078650512,-151.0,0.00033159,2]
[385873715,1758078650521,-151.0,0.00033159,2]
[385873716,1758078650530,-2000.0,0.000332,2]
[385873717,1758078650539,-152.0,0.00033257,3]
[385873718,1758078650548,-155.57436208,0.000333,2]
[385873719,1758078650557,-253.65,0.00033318,2]
[385873720,1758078650566,-250.0,0.00033335,5]
[385873721,1758078650576,-546.0,0.0003338,2]
[385873722,1758078650585,-7000.0,0.00033397,2]
[385873723,1758078650594,-1000.0,0.0003342,2]
[385873724,1758078650603,-3111.0,0.00033432,2]
[385873725,1758078650612,-160.0,0.00033432,2]
[385873726,1758078650621,-334.5472959,0.00033432,2]
[385873727,1758078650630,-257.91778498,0.00033432,2]
[385873728,1758078650640,-880.57465412,0.00033488,15]
[385873729,1758078650649,-500.0,0.0003356,5]
[385873730,1758078650659,-256.58,0.00033689,30]
[385873731,1758078650668,-158.0,0.000337,120]
[385873732,1758078650679,-4227.22,0.000337,14]
[385873733,1758078650690,-37129.46,0.000337,14]
[385873734,1758078650699,-151.0,0.00033707,2]
[385873735,1758078650708,-151.0,0.00033707,2]
[385873736,1758078650717,-151.0,0.00033707,2]
[385873737,1758078650726,-151.0,0.00033707,2]
[385873738,1758078650735,-300.0,0.00033777,10]
[385873739,1758078650744,-167.41,0.00033781,2]
[385873740,1758078650753,-167.18,0.00033781,2]
[385873741,1758078650762,-1000.0,0.00033846,2]
[385873742,1758078650771,-351.57375407,0.00033883,5]
[385873743,1758078650782,-300.0,0.00033899,10]
[385873744,1758078650791,-1000.0,0.00033935,2]
[385873745,1758078650801,-336.0,0.00034,120]
[385873746,1758078650811,-171.12235714,0.00034,2]
[385873747,1758078650821,-4000.0,0.00034,4]
[385873748,1758078650830,-1000.0,0.00034047,2]
[385873749,1758078650839,-1000.0,0.00034071,2]
[385873750,1758078650848,-500.0,0.00034108,5]
[385873751,1758078650857,-1000.0,0.00034161,2]
[385873752,1758078650866,-19378.88262933,0.00034186,2]
[385873753,1758078650876,-151.0,0.00034255,2]
[385873754,1758078650884,-151.0,0.00034255,2]
[385873755,1758078650894,-151.0,0.00034255,2]
[385873756,1758078650904,-151.0,0.00034255,2]
[385873757,1758078650915,-1000.0,0.00034264,2]
[385873758,1758078650927,-1152.0,0.00034308,2]
[385873759,1758078650936,-163.4,0.00034338,60]
[385873760,1758078650946,-245.11,0.00034338,60]
[385873761,1758078650955,-245.11,0.00034338,60]
[385873762,1758078650964,-163.4,0.00034338,60]
[385873763,1758078650973,-163.4,0.00034338,60]
[385873764,1758078650982,-234.43,0.00034355,2]
[385873765,1758078650991,-245.11,0.00034373,60]
[385873766,1758078651001,-163.4,0.00034373,60]
[385873767,1758078651010,-256.58,0.00034389,30]
[385873768,1758078651019,-37129.46,0.000344,14]
[385873769,1758078651029,-151.0,0.000344,7]
[385873770,1758078651039,-151.0,0.000344,7]
[385873771,1758078651049,-151.0,0.000344,7]
[385873772,1758078651059,-151.0,0.000344,7]
[385873773,1758078651068,-151.0,0.000344,7]
[385873774,1758078651077,-166.891424,0.000344,7]
[385873775,1758078651086,-150.0,0.00034409,2]
[385873776,1758078651095,-155.57436208,0.00034435,2]
[385873777,1758078651106,-163.4,0.00034438,60]
[385873778,1758078651115,-163.4,0.00034438,60]
[385873779,1758078651124,-163.4,0.00034438,60]
[385873780,1758078651132,-163.4,0.00034473,60]
[385873781,1758078651142,-160.87128124,0.00034496,7]
[385873782,1758078651151,-1000.0,0.00034521,2]
[385873783,1758078651159,-300.0,0.00034534,10]
[385873784,1758078651168,-1500.0,0.00034534,7]
[385873785,1758078651177,-125981.118236,0.00034535,7]
[385873786,1758078651186,-14865.6221605,0.00034535,7]
[385873787,1758078651195,-163.42,0.00034538,60]
[385873788,1758078651204,-163.4,0.00034538,60]
[385873789,1758078651213,-163.4,0.00034538,60]
[385873790,1758078651222,-534.0,0.0003457,2]
[385873791,1758078651231,-163.42,0.00034573,60]
[385873792,1758078651240,-1262.8580435,0.00034616,2]
[385873793,1758078651249,-163.4,0.00034638,60]
[385873794,1758078651259,-163.4,0.00034638,60]
[385873795,1758078651270,-500.0,0.00034656,5]
[385873796,1758078651280,-880.57465412,0.00034656,15]
[385873797,1758078651290,-4227.22,0.000347,14]
[385873798,1758078651299,-163.4,0.00034738,60]
[385873799,1758078651309,-163.4,0.00034738,60]
[385873800,1758078651317,-168.0,0.00034746,2]
[385873801,1758078651329,-1000.0,0.00034748,2]
[385873802,1758078651339,-168.0,0.0003477,2]
[385873803,1758078651348,-223.0315306,0.00034792,2]
[385873804,1758078651357,-500.0,0.00034795,7]
[385873805,1758078651367,-500.0,0.00034795,7]
[385873806,1758078651377,-500.0,0.00034795,7]
[385873807,1758078651387,-500.0,0.00034795,7]
[385873808,1758078651396,-500.0,0.00034795,7]
[385873809,1758078651406,-500.0,0.00034795,7]
[385873810,1758078651608,-500.0,0.00034795,7]
[385873811,1758078651619,-500.0,0.00034795,7]
[385873812,1758078651628,-500.0,0.00034795,7]
[385873813,1758078651637,-500.0,0.00034795,7]
[385873814,1758078651646,-500.0,0.00034795,7]
[385873815,1758078651655,-500.0,0.00034795,7]
[385873816,1758078651664,-500.0,0.00034795,7]
[385873817,1758078651673,-500.0,0.00034795,7]
[385873818,1758078651682,-500.0,0.00034795,7]
[385873819,1758078651691,-500.0,0.00034795,7]
[385873820,1758078651701,-500.0,0.00034795,7]
[385873821,1758078651710,-500.0,0.00034795,7]
[385873822,1758078651719,-500.0,0.00034795,7]
[385873823,1758078651730,-500.0,0.00034795,7]
[385873824,1758078651740,-500.0,0.00034795,7]
[385873825,1758078651749,-500.0,0.00034795,7]
[385873826,1758078651758,-500.0,0.00034795,7]
[385873827,1758078651768,-500.0,0.00034795,7]
[385873828,1758078651778,-500.0,0.00034795,7]
[385873829,1758078651788,-515.45968835,0.00034795,7]
[385873830,1758078651797,-3364.1088128,0.00034801,2]
[385873831,1758078651806,-160.0,0.00034801,2]
[385873832,1758078651815,-346.92554585,0.00034801,2]
[385873833,1758078651826,-267.46074303,0.00034801,2]
[385873834,1758078651835,-156.587,0.00034802,2]
[385873835,1758078651844,-670.58624095,0.00034802,2]
[385873836,1758078651854,-151.0,0.00034803,2]
[385873837,1758078651863,-151.0,0.00034803,2]
[385873838,1758078651872,-151.0,0.00034803,2]
[385873839,1758078651882,-151.0,0.00034803,2]
[385873840,1758078651891,-163.44,0.00034838,60]
[385873841,1758078651901,-163.4,0.00034838,60]
[385873842,1758078651911,-4609.0,0.00034934,3]
[385873843,1758078651920,-163.4,0.00034938,60]
[385873844,1758078651930,-1000.0,0.0003497,2]
[385873845,1758078651939,-1000.0,0.0003497,2]
[385873846,1758078651949,-1479.55510811,0.0003497,2]
[385873847,1758078651958,-906.89234578,0.0003497,2]
[385873848,1758078651967,-1000.0,0.0003497,2]
[385873849,1758078651977,-1121.6,0.00034989,120]
[385873850,1758078651986,-5000.0,0.00035,2]
[385873851,1758078651995,-169.0,0.00035,30]
[385873852,1758078652006,-160.0,0.00035,7]
[385873853,1758078652015,-153.347278,0.00035,7]
[385873854,1758078652025,-2000.0,0.00035,2]
[385873855,1758078652034,-2000.0,0.00035,2]
[385873856,1758078652044,-156.982694,0.00035,7]
[385873857,1758078652054,-151.0,0.00035,7]
[385873858,1758078652064,-2000.0,0.00035,2]
[385873859,1758078652074,-151.0,0.00035,7]
[385873860,1758078652083,-2000.0,0.00035,2]
[385873861,1758078652093,-2000.0,0.00035,2]
[385873862,1758078652103,-2000.0,0.00035,2]
[385873863,1758078652112,-1098.0,0.00035,2]
[385873864,1758078652122,-151.0,0.00035,7]
[385873865,1758078652131,-151.0,0.00035,7]
[385873866,1758078652138,-158.535772,0.00035,7]
[385873867,1758078652145,-151.0,0.00035,7]
[385873868,1758078652153,-151.0,0.00035,7]
[385873869,1758078652160,-151.0,0.00035,7]
[385873870,1758078652166,-151.0,0.00035,7]
[385873871,1758078652174,-151.0,0.00035,7]
[385873872,1758078652180,-218.649692,0.00035,7]
[385873873,1758078652187,-218.649692,0.00035,7]
[385873874,1758078652195,-218.649692,0.00035,7]
[385873875,1758078652202,-151.0,0.00035,7]
[385873876,1758078652209,-218.649692,0.00035,7]
[385873877,1758078652216,-164.497592,0.00035,7]
[385873878,1758078652223,-2000.0,0.00035,2]
[385873879,1758078652229,-243.016479,0.00035,7]
[385873880,1758078652236,-243.016479,0.00035,7]
[385873881,1758078652244,-243.016479,0.00035,7]
[385873882,1758078652250,-243.016479,0.00035,7]
[385873883,1758078652257,-414.405973,0.00035,7]
[385873884,1758078652264,-414.405973,0.00035,7]
[385873885,1758078652271,-414.405973,0.00035,7]
[385873886,1758078652278,-414.405973,0.00035,7]
[385873887,1758078652286,-151.0,0.00035,7]
[385873888,1758078652293,-151.0,0.00035,7]
[385873889,1758078652301,-422.848426,0.00035,7]
[385873890,1758078652308,-422.848426,0.00035,7]
[385873891,1758078652316,-422.848426,0.00035,7]
[385873892,1758078652324,-151.0,0.00035,7]
[385873893,1758078652331,-422.848426,0.00035,7]
[385873894,1758078652338,-151.0,0.00035,7]
[385873895,1758078652346,-151.0,0.00035,7]
[385873896,1758078652353,-151.0,0.00035,7]
[385873897,1758078652359,-162.772322,0.00035,7]
[385873898,1758078652367,-348.032368,0.00035,7]
[385873899,1758078652373,-348.032368,0.00035,7]
[385873900,1758078652379,-348.032368,0.00035,7]
[385873901,1758078652385,-348.032368,0.00035,7]
[385873902,1758078652394,-151.0,0.00035,7]
[385873903,1758078652401,-254.884899,0.00035,7]
[385873904,1758078652408,-254.884899,0.00035,7]
[385873905,1758078652415,-254.884899,0.00035,7]
[385873906,1758078652422,-254.884899,0.00035,7]
[385873907,1758078652428,-2000.0,0.00035,2]
[385873908,1758078652435,-151.0,0.00035,7]
[385873909,1758078652442,-151.0,0.00035,7]
[385873910,1758078652448,-234.700355,0.00035,7]
[385873911,1758078652454,-811.592004,0.00035,7]
[385873912,1758078652460,-254.514932,0.00035,7]
[385873913,1758078652467,-151.0,0.00035,7]
[385873914,1758078652474,-254.514932,0.00035,7]
[385873915,1758078652481,-811.592004,0.00035,7]
[385873916,1758078652487,-2000.0,0.00035,2]
[385873917,1758078652496,-811.592004,0.00035,7]
[385873918,1758078652504,-811.592004,0.00035,7]
[385873919,1758078652512,-254.514932,0.00035,7]
[385873920,1758078652519,-254.514932,0.00035,7]
[385873921,1758078652525,-151.0,0.00035,7]
[385873922,1758078652532,-151.0,0.00035,7]
[385873923,1758078652540,-151.0,0.00035,7]
[385873924,1758078652547,-151.0,0.00035,7]
[385873925,1758078652554,-151.0,0.00035,7]
[385873926,1758078652560,-287.854402,0.00035,7]
[385873927,1758078652567,-151.0,0.00035,7]
[385873928,1758078652574,-151.0,0.00035,7]
[385873929,1758078652582,-169.913131,0.00035,7]
[385873930,1758078652591,-151.0,0.00035,7]
[385873931,1758078652600,-151.0,0.00035,7]
[385873932,1758078652609,-145669.0,0.00035,30]
[385873933,1758078652619,-500.0,0.00035,13]
[385873934,1758078652628,-500.0,0.00035,13]
[385873935,1758078652637,-500.0,0.00035,13]
[385873936,1758078652646,-500.0,0.00035,13]